[Event "Early-Titled-Tuesday-Blitz-January-23-2024"]
[Site "Chess.com"]
[Date "2024.01.23"]
[Round "7"]
[White "GMKrikor"]
[Black "Sadykov_Ramil"]
[Result "1-0"]
[WhiteElo "2804"]
[BlackElo "2610"]
[TimeControl "180+1"]
[EndTime "9:18:57 PST"]
[Termination "GMKrikor won by checkmate"]

1. Nf3 {[%clk 0:03:00.9]} 1... Nf6 {[%clk 0:02:58.7]} 2. c4 {[%clk 0:03:00.2]}
2... e6 {[%clk 0:02:58.6]} 3. Nc3 {[%clk 0:02:59.3]} 3... d5 {[%clk 0:02:58.7]}
4. cxd5 {[%clk 0:03:00.2]} 4... exd5 {[%clk 0:02:58.9]} 5. d4 {[%clk 0:03:00.9]}
5... Be7 {[%clk 0:02:58.1]} 6. Bf4 {[%clk 0:03:00.8]} 6... O-O {[%clk
0:02:57.7]} 7. e3 {[%clk 0:03:01]} 7... Re8 {[%clk 0:02:47]} 8. Bd3 {[%clk
0:02:59.9]} 8... Nh5 {[%clk 0:02:25]} 9. Be5 {[%clk 0:02:25.5]} 9... Nc6 {[%clk
0:02:24.5]} 10. Bg3 {[%clk 0:01:53.4]} 10... Be6 {[%clk 0:01:51.4]} 11. Qc2
{[%clk 0:01:51.5]} 11... h6 {[%clk 0:01:26.2]} 12. a3 {[%clk 0:01:49.6]} 12...
a6 {[%clk 0:01:11.5]} 13. Rc1 {[%clk 0:01:44.9]} 13... Rc8 {[%clk 0:01:04.3]}
14. Ne2 {[%clk 0:01:43.8]} 14... Bg4 {[%clk 0:00:40.4]} 15. Kf1 {[%clk
0:01:28.8]} 15... Nxg3+ {[%clk 0:00:27.1]} 16. hxg3 {[%clk 0:01:26.2]} 16... Bf6
{[%clk 0:00:27.6]} 17. Bh7+ {[%clk 0:01:17.2]} 17... Kf8 {[%clk 0:00:20.4]} 18.
Bf5 {[%clk 0:01:18.1]} 18... Bxf5 {[%clk 0:00:17.4]} 19. Qxf5 {[%clk 0:01:19]}
19... g6 {[%clk 0:00:14]} 20. Qc2 {[%clk 0:01:00.1]} 20... Bg7 {[%clk
0:00:14.1]} 21. Nf4 {[%clk 0:00:59.9]} 21... Ne7 {[%clk 0:00:13.4]} 22. g4
{[%clk 0:00:58.1]} 22... Kg8 {[%clk 0:00:11.2]} 23. Nd3 {[%clk 0:00:44.7]} 23...
b6 {[%clk 0:00:06]} 24. b4 {[%clk 0:00:44.3]} 24... Qd7 {[%clk 0:00:06.2]} 25.
Nde5 {[%clk 0:00:44.5]} 25... Qe6 {[%clk 0:00:05.9]} 26. Nc6 {[%clk 0:00:23.4]}
26... Qxg4 {[%clk 0:00:01.6]} 27. Nxe7+ {[%clk 0:00:21.6]} 27... Rxe7 {[%clk
0:00:02.5]} 28. Qc6 {[%clk 0:00:22]} 28... Qe6 {[%clk 0:00:02.1]} 29. Ke2 {[%clk
0:00:11.8]} 29... Qf5 {[%clk 0:00:02.3]} 30. Qc2 {[%clk 0:00:09.8]} 30... Qe6
{[%clk 0:00:01.7]} 31. Qc6 {[%clk 0:00:09.3]} 31... Qf5 {[%clk 0:00:02.3]} 32.
Rhd1 {[%clk 0:00:09.2]} 32... Kh7 {[%clk 0:00:02]} 33. Kf1 {[%clk 0:00:09.7]}
33... a5 {[%clk 0:00:02.4]} 34. bxa5 {[%clk 0:00:09.2]} 34... bxa5 {[%clk
0:00:03.3]} 35. a4 {[%clk 0:00:09.9]} 35... Re6 {[%clk 0:00:03.6]} 36. Qc2
{[%clk 0:00:10.4]} 36... Qf6 {[%clk 0:00:04]} 37. Qd3 {[%clk 0:00:09.9]} 37...
c5 {[%clk 0:00:04.1]} 38. Rxc5 {[%clk 0:00:09.8]} 38... Rxc5 {[%clk 0:00:03.7]}
39. dxc5 {[%clk 0:00:10.7]} 39... Rc6 {[%clk 0:00:04.3]} 40. Qxd5 {[%clk
0:00:11.1]} 40... Rc8 {[%clk 0:00:03.5]} 41. Nd4 {[%clk 0:00:09.8]} 41... Qh4
{[%clk 0:00:02.7]} 42. g3 {[%clk 0:00:08.2]} 42... Qh3+ {[%clk 0:00:02.2]} 43.
Ke2 {[%clk 0:00:08.8]} 43... Qg4+ {[%clk 0:00:02.3]} 44. Qf3 {[%clk 0:00:09.2]}
44... Qxf3+ {[%clk 0:00:01.6]} 45. Nxf3 {[%clk 0:00:10.1]} 45... Rxc5 {[%clk
0:00:02.4]} 46. Rd7 {[%clk 0:00:10.7]} 46... Rc4 {[%clk 0:00:03]} 47. Rxf7
{[%clk 0:00:10.5]} 47... Rxa4 {[%clk 0:00:03.6]} 48. Ra7 {[%clk 0:00:10.1]}
48... Kg8 {[%clk 0:00:03.9]} 49. Nh4 {[%clk 0:00:08.9]} 49... Ra2+ {[%clk
0:00:04.3]} 50. Kf3 {[%clk 0:00:09.1]} 50... Kh7 {[%clk 0:00:04.6]} 51. Ra6
{[%clk 0:00:09.1]} 51... g5 {[%clk 0:00:04.3]} 52. Nf5 {[%clk 0:00:09.8]} 52...
Be5 {[%clk 0:00:04.4]} 53. Ke4 {[%clk 0:00:09.5]} 53... Bc3 {[%clk 0:00:04.2]}
54. Ra7+ {[%clk 0:00:09.1]} 54... Kg6 {[%clk 0:00:04.3]} 55. g4 {[%clk
0:00:09.8]} 55... Kf6 {[%clk 0:00:04.1]} 56. Ra6+ {[%clk 0:00:09.3]} 56... Kf7
{[%clk 0:00:04.3]} 57. Nxh6+ {[%clk 0:00:09]} 57... Ke7 {[%clk 0:00:04.5]} 58.
Nf5+ {[%clk 0:00:09.8]} 58... Kf7 {[%clk 0:00:04.8]} 59. f4 {[%clk 0:00:10.7]}
59... gxf4 {[%clk 0:00:04.9]} 60. exf4 {[%clk 0:00:11.6]} 60... a4 {[%clk
0:00:05.8]} 61. g5 {[%clk 0:00:10.3]} 61... a3 {[%clk 0:00:06.4]} 62. g6+ {[%clk
0:00:10.3]} 62... Ke8 {[%clk 0:00:05.9]} 63. g7 {[%clk 0:00:09.5]} 63... Kf7
{[%clk 0:00:04.7]} 64. Ra7+ {[%clk 0:00:09.6]} 64... Kg8 {[%clk 0:00:02.3]} 65.
Ra8+ {[%clk 0:00:09.6]} 65... Kh7 {[%clk 0:00:01.7]} 66. g8=Q# {[%clk
0:00:10.5]} 1-0

[Event "Early-Titled-Tuesday-Blitz-January-23-2024"]
[Site "Chess.com"]
[Date "2024.01.23"]
[Round "7"]
[White "Djager97"]
[Black "Boninknights"]
[Result "1-0"]
[WhiteElo "2566"]
[BlackElo "2340"]
[TimeControl "180+1"]
[EndTime "9:18:58 PST"]
[Termination "Djager97 won on time"]

1. e4 {[%clk 0:03:00.9]} 1... c6 {[%clk 0:02:57.2]} 2. d4 {[%clk 0:03:00]} 2...
a6 {[%clk 0:02:56.1]} 3. Nf3 {[%clk 0:02:58.7]} 3... d5 {[%clk 0:02:54.8]} 4. e5
{[%clk 0:02:58.3]} 4... Bg4 {[%clk 0:02:48.1]} 5. Bd3 {[%clk 0:02:53.4]} 5... e6
{[%clk 0:02:35]} 6. h3 {[%clk 0:02:53.2]} 6... Bh5 {[%clk 0:02:34.1]} 7. Nbd2
{[%clk 0:02:52.5]} 7... c5 {[%clk 0:02:32.4]} 8. c3 {[%clk 0:02:52.3]} 8... Nc6
{[%clk 0:02:29.1]} 9. O-O {[%clk 0:02:43.3]} 9... cxd4 {[%clk 0:02:22.7]} 10.
cxd4 {[%clk 0:02:43.7]} 10... Nxd4 {[%clk 0:02:17.1]} 11. Qa4+ {[%clk
0:02:41.3]} 11... Nc6 {[%clk 0:02:16.8]} 12. Qf4 {[%clk 0:02:06]} 12... Nge7
{[%clk 0:02:11.4]} 13. Re1 {[%clk 0:02:05.9]} 13... Ng6 {[%clk 0:02:06.5]} 14.
Bxg6 {[%clk 0:02:06.3]} 14... Bxg6 {[%clk 0:02:02.9]} 15. Nb3 {[%clk 0:02:06.6]}
15... Be7 {[%clk 0:01:59.9]} 16. Be3 {[%clk 0:02:04.3]} 16... O-O {[%clk
0:01:58.2]} 17. Bc5 {[%clk 0:01:55.4]} 17... Bxc5 {[%clk 0:01:52.5]} 18. Nxc5
{[%clk 0:01:56.3]} 18... Qe7 {[%clk 0:01:48.2]} 19. Rac1 {[%clk 0:01:56.2]}
19... Rac8 {[%clk 0:01:46]} 20. Rc3 {[%clk 0:01:51.6]} 20... f6 {[%clk 0:01:22]}
21. exf6 {[%clk 0:01:48.9]} 21... Rxf6 {[%clk 0:01:20.8]} 22. Qg3 {[%clk
0:01:43.5]} 22... Rxf3 {[%clk 0:01:09.9]} 23. Qxf3 {[%clk 0:01:39.8]} 23... Nd4
{[%clk 0:01:08.9]} 24. Qe3 {[%clk 0:01:37.2]} 24... Nc2 {[%clk 0:01:08]} 25.
Qxe6+ {[%clk 0:01:32.5]} 25... Qxe6 {[%clk 0:01:03.5]} 26. Rxe6 {[%clk
0:01:32.9]} 26... d4 {[%clk 0:01:03]} 27. Rc4 {[%clk 0:00:27.6]} 27... b5 {[%clk
0:00:58.4]} 28. Rxc2 {[%clk 0:00:20.9]} 28... Bxc2 {[%clk 0:00:57.2]} 29. Nb3
{[%clk 0:00:21.8]} 29... Bxb3 {[%clk 0:00:50.8]} 30. axb3 {[%clk 0:00:20.7]}
30... Rc1+ {[%clk 0:00:45]} 31. Kh2 {[%clk 0:00:19.6]} 31... Rc2 {[%clk
0:00:43.1]} 32. Rxa6 {[%clk 0:00:19.7]} 32... Rxb2 {[%clk 0:00:40.7]} 33. Rd6
{[%clk 0:00:17]} 33... Rxb3 {[%clk 0:00:38.1]} 34. Rxd4 {[%clk 0:00:16.7]} 34...
b4 {[%clk 0:00:36.7]} 35. Rd7 {[%clk 0:00:13]} 35... Rc3 {[%clk 0:00:31.9]} 36.
Rb7 {[%clk 0:00:12]} 36... b3 {[%clk 0:00:31.9]} 37. f3 {[%clk 0:00:10.8]} 37...
g5 {[%clk 0:00:30.3]} 38. Kg3 {[%clk 0:00:09.9]} 38... h5 {[%clk 0:00:30.1]} 39.
Rb5 {[%clk 0:00:08.5]} 39... h4+ {[%clk 0:00:27]} 40. Kg4 {[%clk 0:00:08.6]}
40... Rc2 {[%clk 0:00:27]} 41. Rxg5+ {[%clk 0:00:07.5]} 41... Kf7 {[%clk
0:00:26.8]} 42. Kxh4 {[%clk 0:00:07.5]} 42... b2 {[%clk 0:00:23.9]} 43. Rb5
{[%clk 0:00:08]} 43... Rxg2 {[%clk 0:00:23.3]} 44. f4 {[%clk 0:00:06.9]} 44...
Ke6 {[%clk 0:00:23.1]} 45. f5+ {[%clk 0:00:06.6]} 45... Kf6 {[%clk 0:00:22.3]}
46. Kh5 {[%clk 0:00:06.5]} 46... Rg5+ {[%clk 0:00:20.4]} 47. Kh6 {[%clk
0:00:06.7]} 47... Rg3 {[%clk 0:00:15.7]} 48. h4 {[%clk 0:00:04.8]} 48... Rg1
{[%clk 0:00:11.1]} 49. Rxb2 {[%clk 0:00:03.3]} 49... Kxf5 {[%clk 0:00:11.3]} 50.
Rf2+ {[%clk 0:00:03.9]} 50... Ke6 {[%clk 0:00:10.8]} 51. h5 {[%clk 0:00:04.8]}
51... Ke7 {[%clk 0:00:10.7]} 52. Kh7 {[%clk 0:00:04.6]} 52... Ke8 {[%clk
0:00:10.1]} 53. h6 {[%clk 0:00:05.2]} 53... Ke7 {[%clk 0:00:09.9]} 54. Kh8
{[%clk 0:00:05.7]} 54... Ke8 {[%clk 0:00:09.9]} 55. h7 {[%clk 0:00:06.2]} 55...
Ke7 {[%clk 0:00:10]} 56. Rf3 {[%clk 0:00:06.7]} 56... Rg2 {[%clk 0:00:09.1]} 57.
Rf4 {[%clk 0:00:07.2]} 57... Rg3 {[%clk 0:00:08.1]} 58. Ra4 {[%clk 0:00:07.3]}
58... Rg2 {[%clk 0:00:07.4]} 59. Ra8 {[%clk 0:00:07.3]} 59... Kf7 {[%clk
0:00:07]} 60. Ra7+ {[%clk 0:00:07.4]} 60... Kf8 {[%clk 0:00:06.3]} 61. Ra8+
{[%clk 0:00:07.7]} 61... Kf7 {[%clk 0:00:06.5]} 62. Rg8 {[%clk 0:00:07.3]} 62...
Rd2 {[%clk 0:00:04.9]} 63. Rg7+ {[%clk 0:00:07.2]} 63... Kf8 {[%clk 0:00:04]}
64. Rg4 {[%clk 0:00:07.6]} 64... Rh2 {[%clk 0:00:01.4]} 65. Rf4+ {[%clk
0:00:07.4]} 65... Ke7 {[%clk 0:00:01.3]} 66. Kg7 {[%clk 0:00:07.9]} 1-0

[Event "Early-Titled-Tuesday-Blitz-January-23-2024"]
[Site "Chess.com"]
[Date "2024.01.23"]
[Round "7"]
[White "HamedWafa4"]
[Black "TigrVShlyape"]
[Result "0-1"]
[WhiteElo "2720"]
[BlackElo "2941"]
[TimeControl "180+1"]
[EndTime "9:18:59 PST"]
[Termination "TigrVShlyape won on time"]

1. e4 {[%clk 0:03:00.9]} 1... c5 {[%clk 0:02:57.6]} 2. Nf3 {[%clk 0:03:00.4]}
2... e6 {[%clk 0:02:56.7]} 3. d4 {[%clk 0:02:59.4]} 3... cxd4 {[%clk 0:02:56.8]}
4. Nxd4 {[%clk 0:03:00.3]} 4... a6 {[%clk 0:02:56.1]} 5. Bd3 {[%clk 0:02:59.6]}
5... Bc5 {[%clk 0:02:50.8]} 6. Nb3 {[%clk 0:02:59.3]} 6... Ba7 {[%clk
0:02:51.1]} 7. Qg4 {[%clk 0:02:57.5]} 7... Nf6 {[%clk 0:02:48.4]} 8. Qg3 {[%clk
0:02:56.2]} 8... d6 {[%clk 0:02:43.5]} 9. O-O {[%clk 0:02:51.6]} 9... O-O {[%clk
0:02:40.3]} 10. Bh6 {[%clk 0:02:42.8]} 10... Ne8 {[%clk 0:02:34.5]} 11. a4
{[%clk 0:02:37.9]} 11... Nc6 {[%clk 0:02:32.4]} 12. Nc3 {[%clk 0:02:34.5]} 12...
Kh8 {[%clk 0:02:08.1]} 13. Be3 {[%clk 0:02:33.3]} 13... Bxe3 {[%clk 0:02:06.1]}
14. Qxe3 {[%clk 0:02:34.2]} 14... e5 {[%clk 0:02:01.7]} 15. Rfd1 {[%clk
0:02:30.3]} 15... Be6 {[%clk 0:02:00.6]} 16. Nd2 {[%clk 0:02:20.9]} 16... Rc8
{[%clk 0:01:54]} 17. Ne2 {[%clk 0:02:04]} 17... Nf6 {[%clk 0:01:45.4]} 18. c3
{[%clk 0:01:32]} 18... Na5 {[%clk 0:01:34.2]} 19. Rdc1 {[%clk 0:01:02.5]} 19...
Nc4 {[%clk 0:01:23.1]} 20. Nxc4 {[%clk 0:00:58.4]} 20... Bxc4 {[%clk 0:01:24]}
21. Bxc4 {[%clk 0:00:58.9]} 21... Rxc4 {[%clk 0:01:23.3]} 22. Ng3 {[%clk
0:00:54.4]} 22... d5 {[%clk 0:01:13.9]} 23. exd5 {[%clk 0:00:52.8]} 23... Qxd5
{[%clk 0:01:13]} 24. Rd1 {[%clk 0:00:53.1]} 24... Qe6 {[%clk 0:01:11.5]} 25. h3
{[%clk 0:00:52]} 25... Re8 {[%clk 0:01:08.6]} 26. b3 {[%clk 0:00:41.9]} 26...
Rcc8 {[%clk 0:01:02.2]} 27. c4 {[%clk 0:00:41.4]} 27... g6 {[%clk 0:00:42.2]}
28. Ne4 {[%clk 0:00:37.3]} 28... Nxe4 {[%clk 0:00:41.3]} 29. Qxe4 {[%clk
0:00:38.2]} 29... Qe7 {[%clk 0:00:35.1]} 30. Rd5 {[%clk 0:00:32.7]} 30... Rcd8
{[%clk 0:00:34.1]} 31. Rad1 {[%clk 0:00:32.2]} 31... Rxd5 {[%clk 0:00:33.9]} 32.
Qxd5 {[%clk 0:00:28.2]} 32... e4 {[%clk 0:00:30.5]} 33. Qd4+ {[%clk 0:00:17.6]}
33... Kg8 {[%clk 0:00:30.1]} 34. Qe3 {[%clk 0:00:15.7]} 34... h5 {[%clk
0:00:23.7]} 35. c5 {[%clk 0:00:13]} 35... a5 {[%clk 0:00:23]} 36. Rc1 {[%clk
0:00:08.3]} 36... Qe5 {[%clk 0:00:22.3]} 37. Re1 {[%clk 0:00:07.8]} 37... Kg7
{[%clk 0:00:20.4]} 38. f3 {[%clk 0:00:06.8]} 38... Rc8 {[%clk 0:00:18.5]} 39.
Qxe4 {[%clk 0:00:06.4]} 39... Qxe4 {[%clk 0:00:17.7]} 40. Rxe4 {[%clk
0:00:07.2]} 40... Rxc5 {[%clk 0:00:18.1]} 41. Re7 {[%clk 0:00:07.6]} 41... b5
{[%clk 0:00:17.4]} 42. Ra7 {[%clk 0:00:05]} 42... b4 {[%clk 0:00:16.7]} 43. Kf2
{[%clk 0:00:04.3]} 43... g5 {[%clk 0:00:14.4]} 44. Rb7 {[%clk 0:00:02.9]} 44...
Kg6 {[%clk 0:00:13.6]} 45. Rb5 {[%clk 0:00:01.9]} 45... Rxb5 {[%clk 0:00:06.5]}
46. axb5 {[%clk 0:00:02.8]} 46... a4 {[%clk 0:00:07]} 47. b6 {[%clk 0:00:03.7]}
47... axb3 {[%clk 0:00:06.6]} 48. b7 {[%clk 0:00:04.6]} 48... b2 {[%clk
0:00:06.9]} 49. b8=Q {[%clk 0:00:05.5]} 49... b1=Q {[%clk 0:00:07.1]} 50. Qg8+
{[%clk 0:00:06.2]} 50... Kf6 {[%clk 0:00:07.1]} 51. Qh8+ {[%clk 0:00:06.8]}
51... Ke6 {[%clk 0:00:07.4]} 52. Qe8+ {[%clk 0:00:07.3]} 52... Kd6 {[%clk
0:00:07]} 53. Qf8+ {[%clk 0:00:07.6]} 53... Kc6 {[%clk 0:00:06.3]} 54. Qc8+
{[%clk 0:00:07.8]} 54... Kb6 {[%clk 0:00:06.5]} 55. Qb8+ {[%clk 0:00:08.1]}
55... Ka5 {[%clk 0:00:06.6]} 56. Qa7+ {[%clk 0:00:08.4]} 56... Kb5 {[%clk
0:00:07.1]} 57. Qd7+ {[%clk 0:00:08.9]} 57... Kc5 {[%clk 0:00:06.8]} 58. Qc7+
{[%clk 0:00:08.6]} 58... Kd4 {[%clk 0:00:07.1]} 59. Qd6+ {[%clk 0:00:07]} 59...
Kc3 {[%clk 0:00:07.2]} 60. Qe5+ {[%clk 0:00:07.2]} 60... Kb3 {[%clk 0:00:07.2]}
61. Qd5+ {[%clk 0:00:06.8]} 61... Kb2 {[%clk 0:00:07]} 62. Qd4+ {[%clk 0:00:06]}
62... Ka3 {[%clk 0:00:07.2]} 63. Qa7+ {[%clk 0:00:06]} 63... Kb2 {[%clk
0:00:07.5]} 64. Qd4+ {[%clk 0:00:05.9]} 64... Kb3 {[%clk 0:00:07.3]} 65. Qd5+
{[%clk 0:00:06]} 65... Ka4 {[%clk 0:00:07.5]} 66. Qc6+ {[%clk 0:00:06.1]} 66...
Ka3 {[%clk 0:00:07.2]} 67. Qa6+ {[%clk 0:00:05.4]} 67... Kb2 {[%clk 0:00:07.2]}
68. Qf6+ {[%clk 0:00:05.3]} 68... Ka2 {[%clk 0:00:07.3]} 69. Qa6+ {[%clk
0:00:05.1]} 69... Kb3 {[%clk 0:00:07.7]} 0-1

[Event "Early-Titled-Tuesday-Blitz-January-23-2024"]
[Site "Chess.com"]
[Date "2024.01.23"]
[Round "7"]
[White "eagleclaw07"]
[Black "Durarbayli"]
[Result "0-1"]
[WhiteElo "2639"]
[BlackElo "2877"]
[TimeControl "180+1"]
[EndTime "9:19:05 PST"]
[Termination "Durarbayli won on time"]

1. d4 {[%clk 0:03:00.9]} 1... Nf6 {[%clk 0:02:59.7]} 2. c4 {[%clk 0:03:01.5]}
2... e6 {[%clk 0:03:00.1]} 3. Nf3 {[%clk 0:03:00.8]} 3... b6 {[%clk 0:03:00.3]}
4. g3 {[%clk 0:03:01.2]} 4... Ba6 {[%clk 0:03:00.9]} 5. b3 {[%clk 0:02:59.9]}
5... Bb4+ {[%clk 0:03:01.1]} 6. Bd2 {[%clk 0:03:00]} 6... Be7 {[%clk 0:03:01.7]}
7. Bg2 {[%clk 0:03:00.6]} 7... O-O {[%clk 0:03:01.9]} 8. O-O {[%clk 0:03:01.2]}
8... d5 {[%clk 0:03:02.3]} 9. Bc3 {[%clk 0:02:59.7]} 9... c5 {[%clk 0:02:59.5]}
10. Nbd2 {[%clk 0:02:57.8]} 10... Nc6 {[%clk 0:02:58.8]} 11. dxc5 {[%clk
0:02:53.7]} 11... bxc5 {[%clk 0:02:56.3]} 12. cxd5 {[%clk 0:02:46.8]} 12... exd5
{[%clk 0:02:52]} 13. Re1 {[%clk 0:02:46.9]} 13... Rc8 {[%clk 0:02:38]} 14. Rc1
{[%clk 0:02:43.3]} 14... Re8 {[%clk 0:02:33.9]} 15. Ne5 {[%clk 0:02:21.5]} 15...
Nxe5 {[%clk 0:02:34]} 16. Bxe5 {[%clk 0:02:22.4]} 16... Ng4 {[%clk 0:02:31.8]}
17. Bb2 {[%clk 0:02:09.5]} 17... c4 {[%clk 0:02:27.4]} 18. h3 {[%clk 0:01:56.7]}
18... Nxf2 {[%clk 0:01:57.4]} 19. Kxf2 {[%clk 0:01:53.7]} 19... Bc5+ {[%clk
0:01:57.4]} 20. e3 {[%clk 0:01:45.9]} 20... d4 {[%clk 0:01:38.2]} 21. Nxc4
{[%clk 0:01:46]} 21... Bxc4 {[%clk 0:01:00.4]} 22. Rxc4 {[%clk 0:01:43.4]} 22...
dxe3+ {[%clk 0:00:53.1]} 23. Ke2 {[%clk 0:01:38.4]} 23... Qd2+ {[%clk 0:00:40]}
24. Qxd2 {[%clk 0:01:10.4]} 24... exd2+ {[%clk 0:00:40.9]} 25. Kxd2 {[%clk
0:01:06.2]} 25... Rcd8+ {[%clk 0:00:41.4]} 26. Kc3 {[%clk 0:00:40.4]} 26... Rxe1
{[%clk 0:00:34.1]} 27. Rxc5 {[%clk 0:00:40.7]} 27... Re3+ {[%clk 0:00:33.9]} 28.
Kb4 {[%clk 0:00:38.5]} 28... Re2 {[%clk 0:00:32.5]} 29. Bd5 {[%clk 0:00:18.4]}
29... Rxb2 {[%clk 0:00:30.6]} 30. Rc7 {[%clk 0:00:18.9]} 30... a5+ {[%clk
0:00:23.6]} 31. Ka3 {[%clk 0:00:14.9]} 31... Rf2 {[%clk 0:00:23.7]} 32. Ra7
{[%clk 0:00:13]} 32... g6 {[%clk 0:00:22.9]} 33. Bc4 {[%clk 0:00:09.5]} 33...
Rdd2 {[%clk 0:00:22.2]} 34. Ka4 {[%clk 0:00:09.8]} 34... Rxa2+ {[%clk
0:00:22.1]} 35. Kb5 {[%clk 0:00:10.4]} 35... Rf5+ {[%clk 0:00:15.9]} 36. Kb6
{[%clk 0:00:10.7]} 36... Rg2 {[%clk 0:00:09.2]} 37. g4 {[%clk 0:00:10.5]} 37...
Rf6+ {[%clk 0:00:09.5]} 38. Kb5 {[%clk 0:00:09.7]} 38... Rg3 {[%clk 0:00:08.4]}
39. Kxa5 {[%clk 0:00:09]} 39... Rxh3 {[%clk 0:00:07.4]} 40. Rc7 {[%clk
0:00:05.1]} 40... Rg3 {[%clk 0:00:07.2]} 41. b4 {[%clk 0:00:05.2]} 41... Rxg4
{[%clk 0:00:07.1]} 42. b5 {[%clk 0:00:05.8]} 42... Rg1 {[%clk 0:00:03.8]} 43.
Ba2 {[%clk 0:00:04.4]} 43... Ra1 {[%clk 0:00:04]} 44. Rc2 {[%clk 0:00:04.9]}
44... h5 {[%clk 0:00:02.6]} 45. b6 {[%clk 0:00:05.6]} 45... Rxb6 {[%clk
0:00:03.1]} 46. Kxb6 {[%clk 0:00:06.5]} 46... Kg7 {[%clk 0:00:03.8]} 47. Rf2
{[%clk 0:00:06.1]} 47... f5 {[%clk 0:00:03.7]} 48. Kc5 {[%clk 0:00:07]} 48...
Kf6 {[%clk 0:00:04.1]} 49. Kd4 {[%clk 0:00:07.7]} 49... Re1 {[%clk 0:00:04.5]}
50. Kd3 {[%clk 0:00:07.8]} 50... h4 {[%clk 0:00:04.8]} 51. Kd2 {[%clk
0:00:07.6]} 51... Re4 {[%clk 0:00:04.9]} 52. Re2 {[%clk 0:00:07]} 52... Ra4
{[%clk 0:00:05]} 53. Ke1 {[%clk 0:00:07.4]} 53... g5 {[%clk 0:00:04.6]} 54. Re6+
{[%clk 0:00:07.1]} 54... Kg7 {[%clk 0:00:04.4]} 55. Bb3 {[%clk 0:00:05.8]} 55...
Rb4 {[%clk 0:00:04.7]} 56. Bd5 {[%clk 0:00:05]} 56... g4 {[%clk 0:00:04.5]} 57.
Kf2 {[%clk 0:00:05]} 57... Rb2+ {[%clk 0:00:03]} 58. Re2 {[%clk 0:00:04.9]}
58... Rb4 {[%clk 0:00:02.8]} 59. Re6 {[%clk 0:00:03.2]} 59... Rd4 {[%clk
0:00:02]} 60. Rd6 {[%clk 0:00:02.4]} 60... Rd2+ {[%clk 0:00:02.4]} 61. Ke3
{[%clk 0:00:02.8]} 61... Rd1 {[%clk 0:00:02.9]} 62. Kf4 {[%clk 0:00:03.3]} 62...
h3 {[%clk 0:00:02.8]} 63. Kg5 {[%clk 0:00:03.3]} 63... g3 {[%clk 0:00:03.3]} 64.
Rd7+ {[%clk 0:00:03.6]} 64... Kf8 {[%clk 0:00:03.8]} 65. Kf6 {[%clk 0:00:04]}
65... Ke8 {[%clk 0:00:04.2]} 66. Re7+ {[%clk 0:00:02.1]} 66... Kd8 {[%clk
0:00:04]} 67. Bc6 {[%clk 0:00:03]} 67... h2 {[%clk 0:00:03.8]} 68. Ke6 {[%clk
0:00:02.5]} 68... Re1+ {[%clk 0:00:03.7]} 69. Kd6 {[%clk 0:00:02.3]} 69... Rxe7
{[%clk 0:00:04.6]} 70. Bd5 {[%clk 0:00:01.6]} 70... Rd7+ {[%clk 0:00:05.5]} 0-1